[Event "36th German Seniors-ch-65 2024"]
[Site "Bad Wildungen"]
[Date "2024.08.31"]
[Round "9.6"]
[White "Polster, Wolfgang"]
[Black "Gruzmann, Boris"]
[Result "1-0"]
[ECO "C47"]
[WhiteElo "2112"]
[BlackElo "2167"]
[Annotator "RC"]
[PlyCount "75"]
[EventDate "2024.08.22"]
[EventType "swiss"]
[EventCountry "GER"]
[SourceTitle "playchess.com"]
[Source "ChessBase"]
[SourceQuality "1"]
[TimeControl "40/5400+30:1800+30"]

1. e4 {[%emt 0:00:28]} e5 {[%emt 0:00:14]} 2. Nf3 {[%emt 0:00:28]} Nc6 {[%emt 0:00:13]} 3. Nc3 {[%emt 0:00:31]} Nf6 {[%emt 0:00:21]} 4. g3 {[%emt 0:00:30]} d5 {[%emt 0:02:31]} 5. exd5 {[%emt 0:00:42]} Nxd5 {[%emt 0:00:12]} 6. Bg2 {[%emt 0:00:37]} Nxc3 {[%emt 0:04:44]} 7. bxc3 {[%emt 0:00:05]} Be7 {[%emt 0:00:50]} 8. d3 {[%emt 0:02:19]} O-O {[%emt 0:00:47]} 9. O-O {[%emt 0:00:20]} f5 {[%emt 0:01:32]} 10. Rb1 {[%emt 0:03:30]} Bf6 {[%emt 0:04:33]} 11. Be3 {[%emt 0:07:13]} Re8 {[%emt 0:08:01]} 12. Nd2 {[%emt 0:05:45]} Na5 {[%emt 0:11:10]} 13. Bc5 {[%emt 0:04:16]} Be6 {[%emt 0:03:01]} 14. c4 {[%emt 0:08:04]} e4 {[%emt 0:03:00]} 15. Re1 {[%emt 0:02:49]} Bc3 {[%emt 0:01:36]} 16. Bb4 {[%emt 0:01:29]} Bxb4 {[%emt 0:01:26]} 17. Rxb4 {[%emt 0:00:06]} Kh8 {[%emt 0:12:44]} 18. Rb5 {[%emt 0:08:19]} b6 {[%emt 0:08:10]} 19. g4 {[%emt 0:14:30]} c6 {[%emt 0:02:55]} 20. Re5 {[%emt 0:00:27]} Qd6 {[%emt 0:05:00]} 21. Qa1 {[%emt 0:00:22]} Bd7 {[%emt 0:02:56]} 22. Rxe8+ {[%emt 0:06:06]} Rxe8 {[%emt 0:01:17]} 23. dxe4 {[%emt 0:04:41]} Qxd2 {[%emt 0:03:06]} 24. Rd1 {[%emt 0:00:11]} Qg5 {[%emt 0:01:43]} 25. Rxd7 {[%emt 0:00:23]} fxe4 {[%emt 0:00:45]} 26. Qd4 {[%emt 0:02:27]} c5 {[%emt 0:04:17]} 27. Qd5 {[%emt 0:01:31]} Qc1+ {[%emt 0:06:34]} 28. Bf1 {[%emt 0:01:15]} h6 {[%emt 0:01:25]} 29. Qf7 {[%emt 0:04:07]} Rg8 {[%emt 0:00:33]} 30. Qe6 {[%emt 0:01:59]} Qxc2 {[%emt 0:01:05]} 31. Rf7 {[%emt 0:02:09]} e3 {[%emt 0:05:17]} 32. fxe3 {[%emt 0:00:26]} Qd1 {[%emt 0:01:44]} 33. h3 {[%emt 0:01:57]} Qd8 {[%emt 0:00:17]} 34. Qg6 {[%emt 0:02:39]} Qe8 {[%emt 0:00:59]} 35. Kf2 {[%emt 0:00:35]} Qe5 {[%emt 0:00:46]} 36. Bd3 {[%emt 0:00:16]} Qh2+ {[%emt 0:00:43]} 37. Ke1 {[%emt 0:00:13]} Qg3+ {[%emt 0:00:38]} 38. Ke2 {[%emt 0:00:11]} 1-0

[Event "36th German Seniors-ch-65 2024"]
[Site "Bad Wildungen"]
[Date "2024.08.31"]
[Round "9.7"]
[White "Chevelevitch, Evgueni"]
[Black "Rosen, Willy"]
[Result "0-1"]
[ECO "B48"]
[WhiteElo "2334"]
[BlackElo "2091"]
[Annotator "RC"]
[PlyCount "82"]
[EventDate "2024.08.22"]
[EventType "swiss"]
[EventCountry "GER"]
[SourceTitle "playchess.com"]
[Source "ChessBase"]
[SourceQuality "1"]
[TimeControl "40/5400+30:1800+30"]

1. e4 {[%emt 0:00:04]} c5 {[%emt 0:00:05]} 2. Nf3 {[%emt 0:00:07]} Nc6 {[%emt 0:00:06]} 3. d4 {[%emt 0:00:13]} cxd4 {[%emt 0:00:06]} 4. Nxd4 {[%emt 0:00:03]} Nf6 {[%emt 0:00:07]} 5. Nc3 {[%emt 0:00:07]} e6 {[%emt 0:00:08]} 6. a3 {[%emt 0:00:44]} Qc7 {[%emt 0:04:08]} 7. Be2 {[%emt 0:01:42]} a6 {[%emt 0:00:12]} 8. Be3 {[%emt 0:00:28]} d6 {[%emt 0:02:31]} 9. f4 {[%emt 0:00:32]} Bd7 {[%emt 0:03:45]} 10. Nb3 {[%emt 0:00:36]} Na5 {[%emt 0:02:43]} 11. Nd2 {[%emt 0:02:43]} b5 {[%emt 0:04:01]} 12. O-O {[%emt 0:01:55]} h5 {[%emt 0:17:32]} 13. Kh1 {[%emt 0:02:28]} Be7 {[%emt 0:05:18]} 14. Bf3 {[%emt 0:06:34]} Rc8 {[%emt 0:01:39]} 15. Qe2 {[%emt 0:10:58]} Nc4 {[%emt 0:05:20]} 16. Nxc4 {[%emt 0:00:20]} Qxc4 {[%emt 0:00:13]} 17. Qxc4 {[%emt 0:01:20]} Rxc4 {[%emt 0:00:19]} 18. Be2 {[%emt 0:00:11]} Rxc3 {[%emt 0:08:29]} 19. bxc3 {[%emt 0:00:01]} Nxe4 {[%emt 0:00:11]} 20. Bd4 {[%emt 0:03:12]} Bf6 {[%emt 0:02:32]} 21. Bxf6 {[%emt 0:00:38]} gxf6 {[%emt 0:00:03]} 22. c4 {[%emt 0:09:53]} Nc3 {[%emt 0:08:01]} 23. Bd3 {[%emt 0:01:23]} Bc6 {[%emt 0:01:29]} 24. Kg1 {[%emt 0:03:47]} Rg8 {[%emt 0:02:11]} 25. Rf2 {[%emt 0:03:12]} f5 {[%emt 0:00:22]} 26. cxb5 {[%emt 0:04:44]} axb5 {[%emt 0:31:59]} 27. a4 {[%emt 0:00:23]} bxa4 {[%emt 0:00:00]} 28. Ra3 {[%emt 0:00:31]} Ne4 {[%emt 0:00:00]} 29. Bxe4 {[%emt 0:03:20]} fxe4 {[%emt 0:00:00]} 30. Rd2 {[%emt 0:02:21]} Ke7 {[%emt 0:00:00]} 31. Kf2 {[%emt 0:00:36]} d5 {[%emt 0:00:00]} 32. Ke3 {[%emt 0:01:37]} Kd6 {[%emt 0:00:00]} 33. c4 {[%emt 0:03:15]} Rb8 {[%emt 0:00:00]} 34. cxd5 {[%emt 0:02:36]} exd5 {[%emt 0:00:00]} 35. Rc3 {[%emt 0:00:29]} Rb4 {[%emt 0:00:00]} 36. g3 {[%emt 0:00:47]} f5 {[%emt 0:00:00]} 37. h3 {[%emt 0:00:47]} Bb5 {[%emt 0:00:00]} 38. Rc8 {[%emt 0:00:29]} Rb3+ {[%emt 0:00:00]} 39. Kd4 {[%emt 0:00:02]} Rb4+ {[%emt 0:00:00]} 40. Ke3 {[%emt 0:00:24]} Rb3+ {[%emt 0:00:00]} 41. Kd4 {[%emt 0:30:02]} e3 {[%emt 0:15:10]} 0-1

[Event "36th German Seniors-ch-65 2024"]
[Site "Bad Wildungen"]
[Date "2024.08.31"]
[Round "9.10"]
[White "Namyslo, Holger"]
[Black "Behrens, Harald"]
[Result "1-0"]
[ECO "C12"]
[WhiteElo "2140"]
[BlackElo "2206"]
[Annotator "RC"]
[PlyCount "65"]
[EventDate "2024.08.22"]
[EventType "swiss"]
[EventCountry "GER"]
[SourceTitle "playchess.com"]
[Source "ChessBase"]
[SourceQuality "1"]
[TimeControl "40/5400+30:1800+30"]

1. e4 {[%emt 0:00:15]} e6 {[%emt 0:00:06]} 2. d4 {[%emt 0:00:13]} d5 {[%emt 0:00:06]} 3. Nc3 {[%emt 0:00:05]} Nf6 {[%emt 0:00:06]} 4. Bg5 {[%emt 0:00:28]} Bb4 {[%emt 0:00:06]} 5. e5 {[%emt 0:01:10]} h6 {[%emt 0:00:06]} 6. Bd2 {[%emt 0:00:18]} Bxc3 {[%emt 0:00:17]} 7. bxc3 {[%emt 0:01:52]} Ne4 {[%emt 0:00:08]} 8. Bc1 {[%emt 0:03:06]} c5 {[%emt 0:03:44]} 9. Ne2 {[%emt 0:01:52]} Qa5 {[%emt 0:04:29]} 10. f3 {[%emt 0:00:21]} Nxc3 {[%emt 0:01:39]} 11. Qd2 {[%emt 0:00:08]} cxd4 {[%emt 0:00:06]} 12. Nxd4 {[%emt 0:00:11]} Qc7 {[%emt 0:01:52]} 13. Ba3 {[%emt 0:13:12]} Qxe5+ {[%emt 0:05:50]} 14. Kf2 {[%emt 0:00:12]} Nc6 {[%emt 0:00:12]} 15. Bb5 {[%emt 0:19:39]} Nxb5 {[%emt 0:09:33]} 16. Nxb5 {[%emt 0:00:50]} Kd7 {[%emt 0:11:34]} 17. Rae1 {[%emt 0:06:37]} Qf6 {[%emt 0:05:43]} 18. Rd1 {[%emt 0:14:17]} d4 {[%emt 0:10:07]} 19. Rhe1 {[%emt 0:04:42]} Rd8 {[%emt 0:08:59]} 20. c3 {[%emt 0:08:44]} a6 {[%emt 0:05:34]} 21. Nxd4 {[%emt 0:06:17]} Ke8 {[%emt 0:00:27]} 22. Qb2 {[%emt 0:01:30]} Ne7 {[%emt 0:06:09]} 23. Qb6 {[%emt 0:03:16]} Bd7 {[%emt 0:03:58]} 24. Qxb7 {[%emt 0:00:25]} Ba4 {[%emt 0:02:01]} 25. Rd2 {[%emt 0:01:29]} Rdb8 {[%emt 0:01:24]} 26. Qe4 {[%emt 0:00:32]} Ra7 {[%emt 0:02:58]} 27. Nxe6 {[%emt 0:01:42]} fxe6 {[%emt 0:01:42]} 28. Qxa4+ {[%emt 0:00:05]} Kf7 {[%emt 0:00:19]} 29. Rd6 {[%emt 0:01:30]} Qxc3 {[%emt 0:01:31]} 30. Rdxe6 {[%emt 0:00:36]} Nd5 {[%emt 0:00:42]} 31. Qe4 {[%emt 0:01:30]} Nf6 {[%emt 0:01:13]} 32. Rxf6+ {[%emt 0:00:26]} Qxf6 {[%emt 0:00:42]} 33. Qd5+ {[%emt 0:00:24]} 1-0

[Event "36th German Seniors-ch-65 2024"]
[Site "Bad Wildungen"]
[Date "2024.08.31"]
[Round "9.11"]
[White "Babrikowski, Peter"]
[Black "Kuhn, Gerd"]
[Result "1/2-1/2"]
[ECO "B13"]
[WhiteElo "2153"]
[BlackElo "2063"]
[Annotator "RC"]
[PlyCount "58"]
[EventDate "2024.08.22"]
[EventType "swiss"]
[EventCountry "GER"]
[SourceTitle "playchess.com"]
[Source "ChessBase"]
[SourceQuality "1"]
[TimeControl "40/5400+30:1800+30"]

1. e4 {[%emt 0:00:14]} c6 {[%emt 0:00:02]} 2. d4 {[%emt 0:01:12]} d5 {[%emt 0:00:13]} 3. exd5 {[%emt 0:00:22]} cxd5 {[%emt 0:00:10]} 4. Bd3 {[%emt 0:00:09]} Nc6 {[%emt 0:00:31]} 5. c3 {[%emt 0:00:06]} Nf6 {[%emt 0:00:37]} 6. h3 {[%emt 0:00:53]} g6 {[%emt 0:04:12]} 7. Nf3 {[%emt 0:00:47]} Bf5 {[%emt 0:00:35]} 8. Bxf5 {[%emt 0:01:01]} gxf5 {[%emt 0:00:09]} 9. Bf4 {[%emt 0:00:25]} e6 {[%emt 0:01:11]} 10. Qb3 {[%emt 0:01:34]} b6 {[%emt 1:27:50]} 11. Nbd2 {[%emt 0:03:57]} Bd6 {[%emt 0:00:00]} 12. Ne5 {[%emt 0:14:24]} Bxe5 {[%emt 0:01:00]} 13. dxe5 {[%emt 1:11:56]} Nd7 {[%emt 0:00:00]} 14. Nf3 {[%emt 0:00:30]} Qc7 {[%emt 0:01:00]} 15. Qa4 {[%emt 0:00:00]} a6 {[%emt 0:00:00]} 16. Bg3 {[%emt 0:00:00]} Nc5 {[%emt 0:00:00]} 17. Qd1 {[%emt 0:01:30]} Ne4 {[%emt 0:01:30]} 18. Bh2 {[%emt 0:00:00]} Rg8 {[%emt 0:00:00]} 19. O-O {[%emt 0:00:00]} O-O-O {[%emt 0:00:00]} 20. Nd4 {[%emt 0:00:00]} Nxe5 {[%emt 0:00:00]} 21. Qe1 {[%emt 0:00:00]} f4 {[%emt 0:00:00]} 22. Bxf4 {[%emt 0:00:00]} Nf3+ {[%emt 0:00:00]} 23. Nxf3 {[%emt 0:00:00]} Qxf4 {[%emt 0:00:00]} 24. Qe2 {[%emt 0:00:00]} Kb7 {[%emt 0:00:00]} 25. Nd4 {[%emt 0:00:00]} Ng5 {[%emt 0:00:00]} 26. Kh1 {[%emt 0:00:00]} e5 {[%emt 0:00:00]} 27. Nc2 {[%emt 0:00:00]} Ne4 {[%emt 0:00:00]} 28. Nb4 {[%emt 0:00:00]} Nc5 {[%emt 0:00:00]} 29. Rad1 {[%emt 0:00:00]} Qe4 {[%emt 0:00:00]} 1/2-1/2

[Event "36th German Seniors-ch-65 2024"]
[Site "Bad Wildungen"]
[Date "2024.08.31"]
[Round "9.12"]
[White "Haubt, Georg"]
[Black "Erler, Rainer"]
[Result "0-1"]
[ECO "B13"]
[WhiteElo "2063"]
[BlackElo "2122"]
[Annotator "NA RC"]
[PlyCount "72"]
[EventDate "2024.08.22"]
[EventType "swiss"]
[EventCountry "GER"]
[SourceTitle "playchess.com"]
[Source "ChessBase"]
[SourceQuality "1"]
[TimeControl "40/5400+30:1800+30"]

1. d4 {[%emt 0:00:08]} d5 {[%emt 0:00:00]} 2. Bf4 {[%emt 0:00:40]} c5 {[%emt 0:00:00]} 3. e3 {[%emt 0:00:50]} Nc6 {[%emt 0:00:00]} 4. Nc3 {[%emt 0:02:27]} cxd4 {[%emt 0:03:28]} 5. exd4 {[%emt 0:00:34]} a6 {[%emt 0:00:28]} 6. Nf3 {[%emt 0:01:35]} Nf6 {[%emt 0:01:30]} 7. Ne5 {[%emt 0:03:55]} e6 {[%emt 0:09:55]} 8. Nxc6 {[%emt 0:05:59]} bxc6 {[%emt 0:00:04]} 9. Na4 {[%emt 0:00:16]} Bd6 {[%emt 0:00:58]} 10. Bg5 {[%emt 0:04:53]} Qa5+ {[%emt 0:03:44]} 11. c3 {[%emt 0:00:10]} Nd7 {[%emt 0:10:06]} 12. b4 {[%emt 0:04:54]} Qc7 {[%emt 0:00:39]} 13. Be3 {[%emt 0:06:30]} O-O {[%emt 0:07:02]} 14. Bd3 {[%emt 0:00:18]} e5 {[%emt 0:01:34]} 15. dxe5 {[%emt 0:02:01]} Nxe5 {[%emt 0:01:45]} 16. Be2 {[%emt 0:03:00]} f5 {[%emt 0:06:32]} 17. g3 {[%emt 0:02:17]} Ng6 {[%emt 0:06:56]} 18. f4 {[%emt 0:02:21]} Re8 {[%emt 0:03:18]} 19. Bc5 {[%emt 0:01:06]} Bxf4 {[%emt 0:02:41]} 20. Kf2 {[%emt 0:12:03]} Be5 {[%emt 0:07:26]} 21. Bf3 {[%emt 0:02:08]} f4 {[%emt 0:02:19]} 22. g4 {[%emt 0:00:41]} Qd8 {[%emt 0:03:28]} 23. Re1 {[%emt 0:03:10]} Qh4+ {[%emt 0:01:44]} 24. Kg1 {[%emt 0:06:41]} Bxg4 {[%emt 0:13:47]} 25. Bxg4 {[%emt 0:01:46]} f3 {[%emt 0:00:01]} 26. Bxf3 {[%emt 0:02:43]} Bxh2+ {[%emt 0:00:51]} 27. Kf1 {[%emt 0:03:40]} Qh3+ {[%emt 0:00:22]} 28. Bg2 {[%emt 0:06:47]} Rf8+ {[%emt 0:00:09]} 29. Bf2 {[%emt 0:03:34]} Rxf2+ {[%emt 0:03:53]} 30. Kxf2 {[%emt 0:00:01]} Rf8+ {[%emt 0:00:43]} 31. Ke2 {[%emt 0:07:18]} Qxg2+ {[%emt 0:00:22]} 32. Kd3 {[%emt 0:00:04]} Rf3+ {[%emt 0:02:02]} 33. Kd4 {[%emt 0:00:12]} Qg4+ {[%emt 0:00:03]} 34. Kc5 {[%emt 0:00:18]} Qc4+ {[%emt 0:00:11]} 35. Kb6 {[%emt 0:00:12]} Qb5+ {[%emt 0:00:08]} 36. Ka7 {[%emt 0:00:46]} Rf7+ {[%emt 0:10:21]} 0-1

[Event "36th German Seniors-ch-65 2024"]
[Site "Bad Wildungen"]
[Date "2024.08.31"]
[Round "9.13"]
[White "Schrems, Hermann"]
[Black "Zuehlke, Burkhard"]
[Result "1-0"]
[ECO "A49"]
[WhiteElo "2118"]
[BlackElo "1999"]
[Annotator "RC"]
[PlyCount "193"]
[EventDate "2024.08.22"]
[EventType "swiss"]
[EventCountry "GER"]
[SourceTitle "playchess.com"]
[Source "ChessBase"]
[SourceQuality "1"]
[TimeControl "40/5400+30:1800+30"]

1. d4 {[%emt 0:00:04]} Nf6 {[%emt 0:00:08]} 2. Nf3 {[%emt 0:00:05]} g6 {[%emt 0:00:06]} 3. g3 {[%emt 0:00:04]} Bg7 {[%emt 0:00:07]} 4. Bg2 {[%emt 0:00:02]} d6 {[%emt 0:00:08]} 5. O-O {[%emt 0:00:06]} O-O {[%emt 0:00:05]} 6. b3 {[%emt 0:00:11]} c6 {[%emt 0:07:05]} 7. Bb2 {[%emt 0:00:15]} d5 {[%emt 0:00:37]} 8. Nbd2 {[%emt 0:00:24]} a5 {[%emt 0:03:03]} 9. c4 {[%emt 0:01:06]} a4 {[%emt 0:05:31]} 10. h3 {[%emt 0:01:53]} axb3 {[%emt 0:08:07]} 11. axb3 {[%emt 0:04:27]} Rxa1 {[%emt 0:00:08]} 12. Qxa1 {[%emt 0:00:27]} Qb6 {[%emt 0:05:01]} 13. e3 {[%emt 0:03:35]} Na6 {[%emt 0:00:36]} 14. Bc3 {[%emt 0:03:44]} Qc7 {[%emt 0:02:08]} 15. Rc1 {[%emt 0:02:49]} e6 {[%emt 0:05:03]} 16. Ne5 {[%emt 0:04:51]} Ne8 {[%emt 0:02:54]} 17. Nd3 {[%emt 0:01:51]} Nd6 {[%emt 0:03:40]} 18. c5 {[%emt 0:06:08]} Nb5 {[%emt 0:00:28]} 19. Ba5 {[%emt 0:00:57]} Qe7 {[%emt 0:00:49]} 20. Nf3 {[%emt 0:01:16]} f6 {[%emt 0:01:25]} 21. Bc3 {[%emt 0:03:04]} Re8 {[%emt 0:02:24]} 22. Bb2 {[%emt 0:00:33]} Qc7 {[%emt 0:00:46]} 23. Bf1 {[%emt 0:08:45]} Qe7 {[%emt 0:01:53]} 24. Qa5 {[%emt 0:04:49]} Qc7 {[%emt 0:02:18]} 25. Qxc7 {[%emt 0:00:11]} Naxc7 {[%emt 0:01:12]} 26. Kg2 {[%emt 0:00:13]} Bd7 {[%emt 0:01:54]} 27. Ra1 {[%emt 0:00:07]} Ra8 {[%emt 0:00:20]} 28. Rxa8+ {[%emt 0:00:06]} Nxa8 {[%emt 0:00:06]} 29. Nd2 {[%emt 0:01:30]} Nac7 {[%emt 0:01:03]} 30. f4 {[%emt 0:00:12]} Kf7 {[%emt 0:01:11]} 31. Be2 {[%emt 0:05:10]} Ke7 {[%emt 0:00:09]} 32. Nf3 {[%emt 0:01:33]} Bc8 {[%emt 0:00:12]} 33. g4 {[%emt 0:00:12]} Bd7 {[%emt 0:02:32]} 34. Kg3 {[%emt 0:00:45]} Bc8 {[%emt 0:00:30]} 35. h4 {[%emt 0:00:25]} Bd7 {[%emt 0:03:04]} 36. g5 {[%emt 0:03:09]} f5 {[%emt 0:02:28]} 37. Nfe5 {[%emt 0:01:08]} Be8 {[%emt 0:00:14]} 38. Kf2 {[%emt 0:00:42]} Kd8 {[%emt 0:00:24]} 39. Ke1 {[%emt 0:00:06]} Kc8 {[%emt 0:02:10]} 40. Kd2 {[%emt 0:00:32]} Kb8 {[%emt 0:01:40]} 41. Kc2 {[%emt 0:30:26]} Ka7 {[%emt 0:31:16]} 42. Bc1 {[%emt 0:00:14]} Bf8 {[%emt 0:03:27]} 43. Bd2 {[%emt 0:00:29]} Be7 {[%emt 0:00:08]} 44. Ba5 {[%emt 0:01:02]} Kb8 {[%emt 0:00:25]} 45. Nf2 {[%emt 0:07:00]} Kc8 {[%emt 0:00:26]} 46. Nh1 {[%emt 0:00:13]} Bf8 {[%emt 0:02:32]} 47. Ng3 {[%emt 0:01:44]} Bg7 {[%emt 0:00:35]} 48. Nf3 {[%emt 0:00:14]} Kd7 {[%emt 0:00:56]} 49. Nf1 {[%emt 0:01:48]} Kc8 {[%emt 0:00:21]} 50. N1d2 {[%emt 0:00:07]} Kd7 {[%emt 0:00:24]} 51. Nb1 {[%emt 0:00:23]} Kc8 {[%emt 0:00:40]} 52. Bxc7 {[%emt 0:07:02]} Nxc7 {[%emt 0:01:25]} 53. Nc3 {[%emt 0:00:24]} Bf8 {[%emt 0:03:48]} 54. Ne5 {[%emt 0:01:30]} Bg7 {[%emt 0:00:09]} 55. Nd3 {[%emt 0:00:27]} Bf8 {[%emt 0:00:38]} 56. Kb2 {[%emt 0:00:25]} Be7 {[%emt 0:00:21]} 57. Ne5 {[%emt 0:01:23]} Bf8 {[%emt 0:00:09]} 58. Na4 {[%emt 0:01:44]} Na8 {[%emt 0:04:04]} 59. Kc3 {[%emt 0:00:34]} Be7 {[%emt 0:00:21]} 60. Nd3 {[%emt 0:02:05]} Kc7 {[%emt 0:01:19]} 61. Nb4 {[%emt 0:00:57]} Bd7 {[%emt 0:02:18]} 62. h5 {[%emt 0:00:16]} Be8 {[%emt 0:00:19]} 63. h6 {[%emt 0:00:06]} Kd7 {[%emt 0:00:59]} 64. Nd3 {[%emt 0:00:46]} Bf6 {[%emt 0:00:17]} 65. Ne5+ {[%emt 0:00:25]} Ke7 {[%emt 0:00:06]} 66. Kb4 {[%emt 0:01:07]} Kd8 {[%emt 0:00:39]} 67. Nd3 {[%emt 0:00:39]} Be7 {[%emt 0:00:18]} 68. Nc3 {[%emt 0:00:08]} Kd7 {[%emt 0:00:00]} 69. Ka3 {[%emt 0:00:09]} Kc7 {[%emt 0:00:20]} 70. b4 {[%emt 0:00:30]} Kd7 {[%emt 0:01:52]} 71. Na4 {[%emt 0:00:30]} Kc7 {[%emt 0:00:30]} 72. Kb3 {[%emt 0:00:22]} Kd7 {[%emt 0:00:30]} 73. Nc1 {[%emt 0:00:30]} Kc7 {[%emt 0:01:41]} 74. Na2 {[%emt 0:00:30]} Bd7 {[%emt 0:00:00]} 75. N2c3 {[%emt 0:00:30]} Be8 {[%emt 0:01:00]} 76. Nb1 {[%emt 0:00:12]} Bd7 {[%emt 0:00:18]} 77. Na3 {[%emt 0:00:09]} Kd8 {[%emt 0:00:16]} 78. Nc3 {[%emt 0:00:13]} Nc7 {[%emt 0:00:47]} 79. Ka4 {[%emt 0:01:46]} Kc8 {[%emt 0:00:23]} 80. b5 {[%emt 0:05:36]} Ne8 {[%emt 0:01:36]} 81. b6 {[%emt 0:00:52]} Kb8 {[%emt 0:00:30]} 82. Kb4 {[%emt 0:00:30]} Kc8 {[%emt 0:00:13]} 83. Nab1 {[%emt 0:00:13]} Kd8 {[%emt 0:00:25]} 84. Nd2 {[%emt 0:00:07]} Bc8 {[%emt 0:00:47]} 85. Nf3 {[%emt 0:00:14]} Bf8 {[%emt 0:01:50]} 86. Ne5 {[%emt 0:00:07]} Ke7 {[%emt 0:00:06]} 87. Nb1 {[%emt 0:00:06]} Kd8 {[%emt 0:00:38]} 88. Nd2 {[%emt 0:00:05]} Ke7 {[%emt 0:00:08]} 89. Nb3 {[%emt 0:00:04]} Nd6 {[%emt 0:00:25]} 90. Na5 {[%emt 0:00:07]} Ne8 {[%emt 0:00:48]} 91. Bd3 {[%emt 0:00:05]} Nd6 {[%emt 0:00:09]} 92. Ba6 {[%emt 0:00:09]} Kd8 {[%emt 0:02:02]} 93. cxd6 {[%emt 0:00:30]} Bxd6+ {[%emt 0:00:30]} 94. Kb3 {[%emt 0:05:00]} bxa6 {[%emt 0:01:40]} 95. Nxg6 {[%emt 0:00:44]} Ke8 {[%emt 0:01:02]} 96. Ne5 {[%emt 0:00:07]} Kf8 {[%emt 0:07:55]} 97. b7 {[%emt 0:00:09]} 1-0

[Event "36th German Seniors-ch-65 2024"]
[Site "Bad Wildungen"]
[Date "2024.08.31"]
[Round "9.14"]
[White "Matthey, Harald"]
[Black "Zimmermann, Rolf"]
[Result "1/2-1/2"]
[ECO "B18"]
[WhiteElo "2062"]
[BlackElo "2107"]
[Annotator "RC"]
[PlyCount "22"]
[EventDate "2024.08.22"]
[EventType "swiss"]
[EventCountry "GER"]
[SourceTitle "playchess.com"]
[Source "ChessBase"]
[SourceQuality "1"]
[TimeControl "40/5400+30:1800+30"]

1. e4 {[%emt 0:00:02]} c6 {[%emt 0:00:32]} 2. d4 {[%emt 0:00:09]} d5 {[%emt 0:00:03]} 3. Nc3 {[%emt 0:00:11]} dxe4 {[%emt 0:02:23]} 4. Nxe4 {[%emt 0:00:11]} Bf5 {[%emt 0:01:54]} 5. Ng3 {[%emt 0:00:46]} Bg6 {[%emt 0:00:05]} 6. Nh3 {[%emt 0:00:08]} e6 {[%emt 0:00:29]} 7. Nf4 {[%emt 0:00:38]} Bd6 {[%emt 0:04:08]} 8. h4 {[%emt 0:01:31]} Bxf4 {[%emt 0:00:37]} 9. Bxf4 {[%emt 0:00:10]} h6 {[%emt 0:00:09]} 10. h5 {[%emt 0:01:15]} Bh7 {[%emt 0:00:13]} 11. Bxb8 {[%emt 0:12:12]} Rxb8 {[%emt 0:02:45]} 1/2-1/2

[Event "36th German Seniors-ch-65 2024"]
[Site "Bad Wildungen"]
[Date "2024.08.31"]
[Round "9.15"]
[White "Hassenrueck, Helmut"]
[Black "Keller, Harald"]
[Result "1-0"]
[ECO "D37"]
[WhiteElo "2136"]
[BlackElo "2022"]
[Annotator "RC"]
[PlyCount "37"]
[EventDate "2024.08.22"]
[EventType "swiss"]
[EventCountry "GER"]
[SourceTitle "playchess.com"]
[Source "ChessBase"]
[SourceQuality "1"]
[TimeControl "40/5400+30:1800+30"]

1. d4 {[%emt 0:00:03]} Nf6 {[%emt 0:00:08]} 2. Nf3 {[%emt 0:00:04]} d5 {[%emt 0:00:23]} 3. c4 {[%emt 0:00:03]} e6 {[%emt 0:00:13]} 4. Nc3 {[%emt 0:00:07]} Be7 {[%emt 0:00:17]} 5. Bf4 {[%emt 0:00:04]} O-O {[%emt 0:00:12]} 6. e3 {[%emt 0:00:04]} b6 {[%emt 0:00:06]} 7. cxd5 {[%emt 0:00:29]} Nxd5 {[%emt 0:00:30]} 8. Nxd5 {[%emt 0:00:34]} Qxd5 {[%emt 0:00:16]} 9. Be2 {[%emt 0:00:55]} Bb4+ {[%emt 0:09:23]} 10. Nd2 {[%emt 0:02:04]} Qxg2 {[%emt 0:11:46]} 11. Bf3 {[%emt 0:00:31]} Bxd2+ {[%emt 0:00:09]} 12. Kxd2 {[%emt 0:00:14]} Qxf2+ {[%emt 0:00:11]} 13. Kc3 {[%emt 0:00:15]} c6 {[%emt 0:01:07]} 14. h4 {[%emt 0:00:23]} Ba6 {[%emt 0:16:04]} 15. Rh2 {[%emt 0:01:31]} Qf1 {[%emt 0:00:35]} 16. Qxf1 {[%emt 0:00:05]} Bxf1 {[%emt 0:00:06]} 17. Rxf1 {[%emt 0:00:12]} Na6 {[%emt 0:00:03]} 18. Be2 {[%emt 0:03:24]} b5 {[%emt 0:00:41]} 19. Rg2 {[%emt 0:07:03]} 1-0